{"text_format":"1","workbook":"xlsx","n_sheets":5,"sheets":["Invulinstructie","Regeling","Gegevens aanbieder","Specificatie","Cumulatieven"],"not_rendered":{"charts":0,"images":1,"macros":1,"external_links":0,"defined_names":6,"comments":0,"pivot_tables":0},"unopened":[],"bounds":{"document_bytes":16777216,"sheet_cells":100000,"rows_first":2000,"rows_last":500,"rows_between":2000,"halvings":0,"cell_chars":16384,"cell_head_chars":4096},"cells_cut":0,"cells_raw":0,"read":"whole","date_system":"1900"}

{"sheet":"Invulinstructie","index":0,"n_rows":23,"n_cols":6,"rows_kept":23,"cut":false,"hidden":false,"merged":[[22,5,22,11],[4,1,4,9],[5,1,5,2],[5,3,5,9],[7,1,7,2],[7,3,7,9],[11,1,11,9],[12,1,12,9],[15,5,15,11],[16,5,16,11],[10,1,10,11],[19,5,19,11],[1,1,1,11],[3,1,3,11],[14,5,14,11],[17,5,17,11],[18,5,18,11],[20,5,20,11],[13,5,13,11],[21,5,21,11]]}
[]
[null,"Invulinstructie"]
[]
[null,"Algemene invulinstructie"]
[null,"Deze format bestaat uit aantal bladen waarop gegevens moeten worden ingevuld en velden waarin met de ingevulde gegevens gerekend wordt. De legenda is als volgt:"]
[null,"Invoerveld",null,"In een veld zoals dit mag of kan er een waarde worden ingevuld."]
[]
[null,1000,null,"Dit is een waarde die is berekend door het format en kan niet worden gewijzigd."]
[]
[]
[null,"Categorieën"]
[null,"\nIn het Tabblad Specificatie moeten de specificaties van de meerkosten worden ingevuld. Deze kennen een categorie. Onderstaande lijst geeft de categorieën en hun betekenis weer."]
[]
[null,"Categorie",null,null,null,"Betekenis"]
[null,"Beschermingsmiddelen",null,null,null,"Bijvoorbeeld mondkapjes en handschoenen, materialen (zoals plexiglas schermen) om locaties corona-proof te maken, testen en opslag van beschermingsmiddelen."]
[null,"Arbokosten",null,null,null,"Bijvoorbeeld (bij verblijfszorg) inzet medisch personeel voor de beoordeling van ziekteverschijnselen (triage) en/of verzorging tijdens quarantaine."]
[null,"Huur locaties",null,null,null,"Bijvoorbeeld om te voldoen aan de 1,5-meternorm."]
[null,"Personele kosten",null,null,null,"Bijvoorbeeld inhuur personeel, voor verminderde inzetbaarheid eigen personeel (b.v. medewerkers die wachten op een testuitslag) of extra werkzaamheden."]
[null,"Extra inzet eigen personeel",null,null,null,"Meerkosten als gevolg van de extra inzet van eigen personeel."]
[null,"Quarantaineopvang",null,null,null,"Beschikbaarstelling van quarantaineopvang."]
[null,"Alternatieve zorgverlening",null,null,null,"Vormen van alternatieve zorgverlening die hogere kosten dan reguliere zorg met zich meebrengen. Uitgangspunt is dat het doorbetalen van de omzet de ruimte biedt om zorg op alternatieve wijze vorm te geven. Uitsluitend extra kosten zijn die niet gedekt kunnen worden uit de reguliere omzet, kunnen worden aangemerkt als  meerkosten"]
[null,"Extra vervoerskosten",null,null,null,"Kosten die gemaakt worden omdat er aanvullende vervoersmaatregelen genomen moeten worden wegens restricties op capaciteit van vervoersmiddelen (hanteren 1,5-meterregel bijvoorbeeld)."]
[null,"Overige meerkosten",null,null,null,"Meerkosten die niet vallen binnen een van de voorgaande categorieën, maar die wel voldoen aan alle criteria van de Regeling.\n "]

{"sheet":"Regeling","index":1,"n_rows":2,"n_cols":2,"rows_kept":2,"cut":false,"hidden":false,"merged":[[101,1,101,7],[102,1,102,7],[103,1,103,7],[104,1,104,7],[95,1,95,7],[96,1,96,7],[97,1,97,7],[98,1,98,7],[99,1,99,7],[100,1,100,7],[89,1,89,7],[90,1,90,7],[91,1,91,7],[92,1,92,7],[93,1,93,7],[94,1,94,7],[83,1,83,7],[84,1,84,7],[85,1,85,7],[86,1,86,7],[87,1,87,7],[88,1,88,7],[77,1,77,7],[78,1,78,7],[79,1,79,7],[80,1,80,7],[81,1,81,7],[82,1,82,7],[71,1,71,7],[72,1,72,7],[73,1,73,7],[74,1,74,7],[75,1,75,7],[76,1,76,7],[65,1,65,7],[66,1,66,7],[67,1,67,7],[68,1,68,7],[69,1,69,7],[70,1,70,7],[59,1,59,7],[60,1,60,7],[61,1,61,7],[62,1,62,7],[63,1,63,7],[64,1,64,7],[53,1,53,7],[54,1,54,7],[55,1,55,7],[56,1,56,7],[57,1,57,7],[58,1,58,7],[47,1,47,7],[48,1,48,7],[49,1,49,7],[50,1,50,7],[51,1,51,7],[52,1,52,7],[42,1,42,7],[43,1,43,7],[44,1,44,7],[45,1,45,7],[46,1,46,7],[37,1,37,7],[38,1,38,7],[39,1,39,7],[40,1,40,7],[41,1,41,7],[31,1,31,7],[32,1,32,7],[33,1,33,7],[34,1,34,7],[35,1,35,7],[36,1,36,7],[25,1,25,7],[26,1,26,7],[27,1,27,7],[28,1,28,7],[29,1,29,7],[30,1,30,7],[20,1,20,7],[21,1,21,7],[22,1,22,7],[23,1,23,7],[24,1,24,7],[14,1,14,7],[15,1,15,7],[16,1,16,7],[17,1,17,7],[18,1,18,7],[19,1,19,7],[8,1,8,7],[9,1,9,7],[10,1,10,7],[11,1,11,7],[12,1,12,7],[13,1,13,7],[2,1,2,7],[3,1,3,7],[4,1,4,7],[5,1,5,7],[6,1,6,7],[7,1,7,7]]}
[]
[null,"Regeling"]

{"sheet":"Gegevens aanbieder","index":2,"n_rows":19,"n_cols":5,"rows_kept":19,"cut":false,"hidden":false,"merged":[]}
[]
[null,"Gegevens zorgaanbieder"]
[]
[null,"Versiehistorie"]
[null,"Versienr.","Auteur","Datum","Toelichting"]
[]
[]
[null,"Gegevens gemeente/contractpartij"]
[null,"Naam gemeente/contractpartij"]
[]
[null,"Gegevens zorgaanbieder"]
[null,"Naam"]
[null,"Plaats"]
[null,"KVK-nummer"]
[null,"AGB-code"]
[null,"Contactpersoon"]
[null,"Telefoonnummer - algemeen"]
[null,"Telefoonnummer - contactpersoon"]
[null,"Emailadres"]

{"sheet":"Specificatie","index":3,"n_rows":20,"n_cols":8,"rows_kept":20,"cut":false,"hidden":false,"merged":[]}
[]
[null,"Specificatie meerkosten"]
[null,"Versie",null,null,{"$f":"MAX(Versiebeheer[Versienr.])","v":0}]
[null,"Datum",null,null,{"$f":"VLOOKUP(MAX(Versiebeheer[Versienr.]),Versiebeheer[#All],3)","v":{"$error":"#N/A"}}]
[null,"Gemeente/contractpartij",null,null,{"$f":"IF('Gegevens aanbieder'!E9=0,\"\",'Gegevens aanbieder'!E9)","v":""}]
[]
[null,"1. De hieronder gespecificeerde kosten voldoen aan de voorwaarden van de Regeling meerkosten"]
[]
[null,"De kosten hebben betrekking op de periode van de coronamaatregelen"]
[null,"De kosten zijn gemaakt om te voldoen aan kabinetsmaatregelen en RIVM-richtlijnen"]
[null,"De kosten hoeven onder reguliere omstandigheden niet te worden gemaakt"]
[null,"De kosten zijn noodzakelijk om de zorg te kunnen continueren volgens de kabinetsmaatregelen en RIVM-richtlijnen"]
[null,"De kosten zijn/worden niet reeds anders of elders gecompenseerd"]
[null,"De kosten zijn door of voor rekening van de zorgaanbieder gemaakt"]
[]
[null,"2. Specificaties meerkosten"]
[]
[null,"Volgnr.","Datum","Categorie","Omschrijving","Bewijsdocument","Bedrag\nbewijsdocument","Bedrag te factureren"]
[null,1,"N.v.t.",null,null,null,0,0]
[null,null,null,null,null,null,{"$f":"SUBTOTAL(109,Meerkosten[Bedrag\nbewijsdocument])","v":0},{"$f":"SUBTOTAL(109,Meerkosten[Bedrag te factureren])","v":0}]

{"sheet":"Cumulatieven","index":4,"n_rows":19,"n_cols":7,"rows_kept":19,"cut":false,"hidden":false,"merged":[]}
[]
[null,"Cumulatieven van ingevoerde en berekende gegevens"]
[null,"Versie",null,null,{"$f":"MAX(Versiebeheer[Versienr.])","v":0}]
[null,"Datum",null,null,{"$f":"VLOOKUP(MAX(Versiebeheer[Versienr.]),Versiebeheer[#All],3)","v":{"$error":"#N/A"}}]
[null,"Gemeente/contractpartij",null,null,{"$f":"IF('Gegevens aanbieder'!E9=0,\"\",'Gegevens aanbieder'!E9)","v":""}]
[]
[null,"Totale meerkosten, per categorie"]
[]
[null,null,null,"Totaal (bedrag bewijsdocument)",null,null,"Totaal (bedrag te factureren)"]
[null,{"$f":"Invulinstructie!B15","v":"Beschermingsmiddelen"},null,{"$f":"SUMIF(Meerkosten[Categorie],Cumulatieven!B10,Meerkosten[Bedrag\nbewijsdocument])","v":0},null,null,{"$f":"SUMIF(Meerkosten[Categorie],Cumulatieven!B10,Meerkosten[Bedrag te factureren])","v":0}]
[null,{"$f":"Invulinstructie!B16","v":"Arbokosten"},null,{"$f":"SUMIF(Meerkosten[Categorie],Cumulatieven!B11,Meerkosten[Bedrag\nbewijsdocument])","v":0},null,null,{"$f":"SUMIF(Meerkosten[Categorie],Cumulatieven!B11,Meerkosten[Bedrag te factureren])","v":0}]
[null,{"$f":"Invulinstructie!B17","v":"Huur locaties"},null,{"$f":"SUMIF(Meerkosten[Categorie],Cumulatieven!B12,Meerkosten[Bedrag\nbewijsdocument])","v":0},null,null,{"$f":"SUMIF(Meerkosten[Categorie],Cumulatieven!B12,Meerkosten[Bedrag te factureren])","v":0}]
[null,{"$f":"Invulinstructie!B18","v":"Personele kosten"},null,{"$f":"SUMIF(Meerkosten[Categorie],Cumulatieven!B13,Meerkosten[Bedrag\nbewijsdocument])","v":0},null,null,{"$f":"SUMIF(Meerkosten[Categorie],Cumulatieven!B13,Meerkosten[Bedrag te factureren])","v":0}]
[null,{"$f":"Invulinstructie!B19","v":"Extra inzet eigen personeel"},null,{"$f":"SUMIF(Meerkosten[Categorie],Cumulatieven!B14,Meerkosten[Bedrag\nbewijsdocument])","v":0},null,null,{"$f":"SUMIF(Meerkosten[Categorie],Cumulatieven!B14,Meerkosten[Bedrag te factureren])","v":0}]
[null,{"$f":"Invulinstructie!B20","v":"Quarantaineopvang"},null,{"$f":"SUMIF(Meerkosten[Categorie],Cumulatieven!B15,Meerkosten[Bedrag\nbewijsdocument])","v":0},null,null,{"$f":"SUMIF(Meerkosten[Categorie],Cumulatieven!B15,Meerkosten[Bedrag te factureren])","v":0}]
[null,{"$f":"Invulinstructie!B21","v":"Alternatieve zorgverlening"},null,{"$f":"SUMIF(Meerkosten[Categorie],Cumulatieven!B16,Meerkosten[Bedrag\nbewijsdocument])","v":0},null,null,{"$f":"SUMIF(Meerkosten[Categorie],Cumulatieven!B16,Meerkosten[Bedrag te factureren])","v":0}]
[null,{"$f":"Invulinstructie!B22","v":"Extra vervoerskosten"},null,{"$f":"SUMIF(Meerkosten[Categorie],Cumulatieven!B17,Meerkosten[Bedrag\nbewijsdocument])","v":0},null,null,{"$f":"SUMIF(Meerkosten[Categorie],Cumulatieven!B17,Meerkosten[Bedrag te factureren])","v":0}]
[null,{"$f":"Invulinstructie!B23","v":"Overige meerkosten"},null,{"$f":"SUMIF(Meerkosten[Categorie],Cumulatieven!B18,Meerkosten[Bedrag\nbewijsdocument])","v":0},null,null,{"$f":"SUMIF(Meerkosten[Categorie],Cumulatieven!B18,Meerkosten[Bedrag te factureren])","v":0}]
[null,"TOTAAL",null,{"$f":"SUM(D10:D18)","v":0},null,null,{"$f":"SUM(G10:G18)","v":0}]